[Event "*** Titled Tuesday Blitz"]
[Site "Chess.com"]
[Date "2020.11.10"]
[Round "6"]
[White "vladimirssvesnikovs"]
[Black "JozefKneht"]
[Result "1/2-1/2"]
[WhiteElo "2297"]
[BlackElo "2509"]
[TimeControl "180+1"]
[EndTime "11:10:16 PST"]
[Termination "Game drawn by agreement"]

1. e4 {[%clk 0:02:41.9]} 1... Nf6 {[%clk 0:02:55.7]} 2. e5 {[%clk 0:02:42]} 2...
Nd5 {[%clk 0:02:55.3]} 3. d4 {[%clk 0:02:42.5]} 3... d6 {[%clk 0:02:55.4]} 4. c4
{[%clk 0:02:42.7]} 4... Nb6 {[%clk 0:02:55.1]} 5. exd6 {[%clk 0:02:43.3]} 5...
cxd6 {[%clk 0:02:55.7]} 6. Nc3 {[%clk 0:02:43.4]} 6... g6 {[%clk 0:02:56]} 7.
Be3 {[%clk 0:02:43.6]} 7... Bg7 {[%clk 0:02:56.6]} 8. Rc1 {[%clk 0:02:44.2]}
8... O-O {[%clk 0:02:56.7]} 9. b3 {[%clk 0:02:44.6]} 9... Nc6 {[%clk 0:02:53.1]}
10. d5 {[%clk 0:02:44.7]} 10... Ne5 {[%clk 0:02:51.4]} 11. Be2 {[%clk
0:02:45.1]} 11... h5 {[%clk 0:02:38.7]} 12. h3 {[%clk 0:02:44.5]} 12... e6
{[%clk 0:02:34]} 13. f4 {[%clk 0:02:44.5]} 13... Qh4+ {[%clk 0:02:32.9]} 14. Kf1
{[%clk 0:02:04.3]} 14... Ng4 {[%clk 0:02:29.5]} 15. Bxg4 {[%clk 0:01:14.6]}
15... hxg4 {[%clk 0:02:27.6]} 16. dxe6 {[%clk 0:01:02.8]} 16... Bxe6 {[%clk
0:02:25]} 17. Bd4 {[%clk 0:00:47.5]} 17... gxh3 {[%clk 0:02:07.9]} 18. Nxh3
{[%clk 0:00:36.9]} 18... Bxh3 {[%clk 0:02:04.9]} 19. Bxg7 {[%clk 0:00:30.1]}
19... Qxf4+ {[%clk 0:01:59.6]} 20. Kg1 {[%clk 0:00:29.1]} 20... Qe3+ {[%clk
0:01:55.9]} 21. Kf1 {[%clk 0:00:26.6]} 21... Bxg2+ {[%clk 0:01:53.6]} 22. Kxg2
{[%clk 0:00:26.6]} 22... Kxg7 {[%clk 0:01:53.5]} 23. Rh3 {[%clk 0:00:25.2]}
23... Qe5 {[%clk 0:01:48.2]} 24. Qd2 {[%clk 0:00:20.2]} 24... Rh8 {[%clk
0:01:47.2]} 25. Re1 {[%clk 0:00:20.3]} 25... Qf6 {[%clk 0:01:38.4]} 26. Ne4
{[%clk 0:00:20.4]} 26... Qe5 {[%clk 0:01:18.6]} 27. Nf2 {[%clk 0:00:20.1]} 27...
Qf5 {[%clk 0:01:15.2]} 28. Qd4+ {[%clk 0:00:18.7]} 28... Qf6 {[%clk 0:01:14.6]}
29. Qxf6+ {[%clk 0:00:18]} 29... Kxf6 {[%clk 0:01:14.2]} 30. Ne4+ {[%clk
0:00:18.9]} 30... Kg7 {[%clk 0:01:14.2]} 31. Rxh8 {[%clk 0:00:17.9]} 31... Rxh8
{[%clk 0:01:12.7]} 32. Nxd6 {[%clk 0:00:18.8]} 32... Rd8 {[%clk 0:01:12.8]} 33.
Nxb7 {[%clk 0:00:18.8]} 33... Rd2+ {[%clk 0:01:12.5]} 34. Kf3 {[%clk 0:00:18.9]}
34... Rxa2 {[%clk 0:01:13]} 35. c5 {[%clk 0:00:19.4]} 35... Nd5 {[%clk
0:01:12.4]} 36. Rd1 {[%clk 0:00:19.1]} 36... Nb4 {[%clk 0:01:09.4]} 37. Rd4
{[%clk 0:00:17.4]} 37... Nc6 {[%clk 0:01:08.6]} 38. Rd6 {[%clk 0:00:17.5]} 38...
Ne5+ {[%clk 0:01:06.7]} 39. Ke4 {[%clk 0:00:17.4]} 39... Re2+ {[%clk 0:01:06.2]}
40. Kd5 {[%clk 0:00:16.3]} 40... g5 {[%clk 0:01:05.2]} 41. c6 {[%clk 0:00:16.2]}
41... Nxc6 {[%clk 0:01:00.8]} 42. Rxc6 {[%clk 0:00:14]} 42... g4 {[%clk
0:01:00.6]} 43. Nd6 {[%clk 0:00:13.8]} 43... Rf2 {[%clk 0:00:57]} 44. Ne4 {[%clk
0:00:13.1]} 44... Rf5+ {[%clk 0:00:55.9]} 45. Kd4 {[%clk 0:00:13.5]} 45... Rb5
{[%clk 0:00:54.9]} 46. Nc5 {[%clk 0:00:12.2]} 46... g3 {[%clk 0:00:52.4]} 47.
Ke3 {[%clk 0:00:10.4]} 47... f5 {[%clk 0:00:43.9]} 48. Kf3 {[%clk 0:00:09.4]}
48... f4 {[%clk 0:00:43.9]} 49. Rc7+ {[%clk 0:00:04.8]} 49... Kg6 {[%clk
0:00:42.8]} 50. Rc8 {[%clk 0:00:04.2]} 50... a5 {[%clk 0:00:39.7]} 51. Kxf4
{[%clk 0:00:04]} 51... g2 {[%clk 0:00:38.5]} 52. Rg8+ {[%clk 0:00:04.2]} 52...
Kf7 {[%clk 0:00:38.7]} 53. Rxg2 {[%clk 0:00:04.7]} 53... Rxc5 {[%clk 0:00:39]}
54. Ra2 {[%clk 0:00:04.7]} 54... Rb5 {[%clk 0:00:38.7]} 55. Ke4 {[%clk
0:00:05.1]} 55... Rxb3 {[%clk 0:00:38.5]} 56. Rxa5 {[%clk 0:00:05.4]} 1/2-1/2

[Event "*** Titled Tuesday Blitz"]
[Site "Chess.com"]
[Date "2020.11.10"]
[Round "6"]
[White "wnstop"]
[Black "Msb2"]
[Result "0-1"]
[WhiteElo "2716"]
[BlackElo "2901"]
[TimeControl "180+1"]
[EndTime "11:10:17 PST"]
[Termination "Msb2 won on time"]

1. e4 {[%clk 0:03:00.9]} 1... e6 {[%clk 0:02:58.3]} 2. d4 {[%clk 0:02:59.3]}
2... d5 {[%clk 0:02:59.2]} 3. Nd2 {[%clk 0:02:59.6]} 3... c5 {[%clk 0:02:59.1]}
4. exd5 {[%clk 0:02:56.9]} 4... Qxd5 {[%clk 0:03:00]} 5. dxc5 {[%clk 0:02:52.1]}
5... Qxc5 {[%clk 0:02:57.7]} 6. Ngf3 {[%clk 0:02:50.9]} 6... Nf6 {[%clk
0:02:58]} 7. Bd3 {[%clk 0:02:47.7]} 7... Nbd7 {[%clk 0:02:58.4]} 8. Qe2 {[%clk
0:02:44.1]} 8... Qc7 {[%clk 0:02:58.4]} 9. c3 {[%clk 0:02:43.2]} 9... b6 {[%clk
0:02:45.9]} 10. Ne4 {[%clk 0:02:37.5]} 10... Bb7 {[%clk 0:02:24.5]} 11. Nxf6+
{[%clk 0:02:36.2]} 11... gxf6 {[%clk 0:02:24.9]} 12. Be4 {[%clk 0:02:31.4]}
12... Nc5 {[%clk 0:02:16]} 13. Bxb7 {[%clk 0:02:20.3]} 13... Qxb7 {[%clk
0:02:16.9]} 14. Bf4 {[%clk 0:02:05.7]} 14... O-O-O {[%clk 0:02:13.7]} 15. O-O
{[%clk 0:02:03.6]} 15... Bd6 {[%clk 0:02:08.7]} 16. Bg3 {[%clk 0:01:57.4]} 16...
Qe4 {[%clk 0:01:56.8]} 17. Qb5 {[%clk 0:01:47.5]} 17... Bxg3 {[%clk 0:01:23.5]}
18. hxg3 {[%clk 0:01:48.4]} 18... Kb7 {[%clk 0:01:15.5]} 19. Rfe1 {[%clk
0:01:36.7]} 19... Qc6 {[%clk 0:01:10.3]} 20. Qe2 {[%clk 0:01:35.2]} 20... Rd5
{[%clk 0:01:06.6]} 21. Nd4 {[%clk 0:01:30.4]} 21... Qd7 {[%clk 0:01:06.6]} 22.
Qf3 {[%clk 0:01:25.8]} 22... Kb8 {[%clk 0:01:00]} 23. a4 {[%clk 0:01:14.1]}
23... f5 {[%clk 0:00:48]} 24. a5 {[%clk 0:01:04.8]} 24... b5 {[%clk 0:00:47.9]}
25. a6 {[%clk 0:00:58.7]} 25... Ne4 {[%clk 0:00:42]} 26. Ra5 {[%clk 0:00:24.1]}
26... h5 {[%clk 0:00:42]} 27. Qe2 {[%clk 0:00:11.5]} 27... Nd6 {[%clk
0:00:42.3]} 28. Nf3 {[%clk 0:00:08.6]} 28... Nc4 {[%clk 0:00:38.3]} 29. Ra2
{[%clk 0:00:09]} 29... Rd8 {[%clk 0:00:35.3]} 30. b3 {[%clk 0:00:08.5]} 30...
Nd6 {[%clk 0:00:32.7]} 31. c4 {[%clk 0:00:08.8]} 31... Rc5 {[%clk 0:00:29.4]}
32. Ne5 {[%clk 0:00:08.2]} 32... Qc7 {[%clk 0:00:26.9]} 33. Nd3 {[%clk
0:00:06.1]} 33... Ne4 {[%clk 0:00:23.3]} 34. Nxc5 {[%clk 0:00:05.8]} 34... Qxc5
{[%clk 0:00:24.2]} 35. Rc2 {[%clk 0:00:03.3]} 35... b4 {[%clk 0:00:19]} 36. Rd1
{[%clk 0:00:03.6]} 36... Rg8 {[%clk 0:00:14.1]} 37. Qf3 {[%clk 0:00:02]} 37...
Qe5 {[%clk 0:00:09.4]} 38. Qf4 {[%clk 0:00:01.5]} 38... Qxf4 {[%clk 0:00:09.3]}
39. gxf4 {[%clk 0:00:02.4]} 39... h4 {[%clk 0:00:10.2]} 40. Kh2 {[%clk
0:00:02.3]} 40... Rg4 {[%clk 0:00:10.3]} 41. Re2 {[%clk 0:00:01.5]} 41... Nc3
{[%clk 0:00:09.4]} 0-1

[Event "*** Titled Tuesday Blitz"]
[Site "Chess.com"]
[Date "2020.11.10"]
[Round "6"]
[White "mamonika"]
[Black "FMalexhdez"]
[Result "1-0"]
[WhiteElo "2041"]
[BlackElo "2269"]
[TimeControl "180+1"]
[EndTime "11:10:18 PST"]
[Termination "mamonika won on time"]

1. c4 {[%clk 0:03:00]} 1... c5 {[%clk 0:02:57.9]} 2. Nc3 {[%clk 0:02:58.1]} 2...
Nc6 {[%clk 0:02:58]} 3. g3 {[%clk 0:02:56.4]} 3... Nf6 {[%clk 0:02:58.5]} 4. Bg2
{[%clk 0:02:56]} 4... g6 {[%clk 0:02:59.2]} 5. f4 {[%clk 0:02:50.7]} 5... Bg7
{[%clk 0:03:00.1]} 6. Nf3 {[%clk 0:02:49.3]} 6... d5 {[%clk 0:02:57.8]} 7. cxd5
{[%clk 0:02:48.5]} 7... Nxd5 {[%clk 0:02:57.8]} 8. O-O {[%clk 0:02:48.1]} 8...
Nc7 {[%clk 0:02:55.9]} 9. d3 {[%clk 0:02:36.8]} 9... O-O {[%clk 0:02:55.5]} 10.
Be3 {[%clk 0:02:36.1]} 10... Ne6 {[%clk 0:02:53.6]} 11. Nd2 {[%clk 0:02:31.1]}
11... Ned4 {[%clk 0:02:50.3]} 12. Nb3 {[%clk 0:02:27]} 12... Nxb3 {[%clk
0:02:35.7]} 13. Qxb3 {[%clk 0:02:21.6]} 13... Nd4 {[%clk 0:02:36.3]} 14. Bxd4
{[%clk 0:02:08.6]} 14... Qxd4+ {[%clk 0:02:30]} 15. Kh1 {[%clk 0:02:07.2]} 15...
Be6 {[%clk 0:02:17.8]} 16. Qc2 {[%clk 0:02:03.2]} 16... Rab8 {[%clk 0:02:12.4]}
17. Rae1 {[%clk 0:01:55.5]} 17... c4 {[%clk 0:01:59.6]} 18. dxc4 {[%clk
0:01:40.7]} 18... Qxc4 {[%clk 0:01:59.3]} 19. e4 {[%clk 0:01:36.7]} 19... Bxc3
{[%clk 0:01:44.3]} 20. Qxc3 {[%clk 0:01:35.5]} 20... Qxc3 {[%clk 0:01:41.4]} 21.
bxc3 {[%clk 0:01:35.4]} 21... Rfc8 {[%clk 0:01:41.4]} 22. Re3 {[%clk 0:01:31.3]}
22... Rc5 {[%clk 0:01:26.2]} 23. Rb1 {[%clk 0:01:19.3]} 23... b6 {[%clk
0:01:17]} 24. f5 {[%clk 0:01:11.5]} 24... Bc4 {[%clk 0:01:04.1]} 25. a4 {[%clk
0:01:03]} 25... Rd8 {[%clk 0:01:01.2]} 26. h4 {[%clk 0:00:42.2]} 26... Rd3
{[%clk 0:00:50.1]} 27. Rbe1 {[%clk 0:00:28.9]} 27... Rxe3 {[%clk 0:00:41.4]} 28.
Rxe3 {[%clk 0:00:29.8]} 28... Bb3 {[%clk 0:00:41.1]} 29. e5 {[%clk 0:00:25]}
29... gxf5 {[%clk 0:00:37.5]} 30. h5 {[%clk 0:00:20.3]} 30... Bxa4 {[%clk
0:00:34.6]} 31. h6 {[%clk 0:00:20.2]} 31... Bc2 {[%clk 0:00:27]} 32. Re2 {[%clk
0:00:19.9]} 32... Rxc3 {[%clk 0:00:22.4]} 33. Rd2 {[%clk 0:00:19.8]} 33... Rc8
{[%clk 0:00:11.8]} 34. Bb7 {[%clk 0:00:19.6]} 34... Rb8 {[%clk 0:00:11.1]} 35.
Rxc2 {[%clk 0:00:19.2]} 35... f6 {[%clk 0:00:06.6]} 36. Bd5+ {[%clk 0:00:19.3]}
36... Kf8 {[%clk 0:00:06.4]} 37. exf6 {[%clk 0:00:19.7]} 37... exf6 {[%clk
0:00:05.8]} 38. Rc7 {[%clk 0:00:20.3]} 38... Rd8 {[%clk 0:00:04.9]} 39. Be6
{[%clk 0:00:20.4]} 39... Rd6 {[%clk 0:00:04]} 40. Bxf5 {[%clk 0:00:20.4]} 40...
Rd5 {[%clk 0:00:04]} 41. g4 {[%clk 0:00:19.7]} 41... Rd1+ {[%clk 0:00:03.5]} 42.
Kg2 {[%clk 0:00:18.9]} 42... Rd2+ {[%clk 0:00:04.4]} 43. Kf3 {[%clk 0:00:18.3]}
43... a5 {[%clk 0:00:05.3]} 44. Rxh7 {[%clk 0:00:17.8]} 44... a4 {[%clk
0:00:04.8]} 45. Ra7 {[%clk 0:00:16.7]} 45... a3 {[%clk 0:00:03.3]} 46. h7 {[%clk
0:00:16.8]} 46... Rh2 {[%clk 0:00:02.1]} 47. Kg3 {[%clk 0:00:17.2]} 47... Rh1
{[%clk 0:00:01.8]} 48. Rxa3 {[%clk 0:00:17.6]} 48... Kg7 {[%clk 0:00:01.4]} 49.
Rb3 {[%clk 0:00:17.8]} 1-0

[Event "*** Titled Tuesday Blitz"]
[Site "Chess.com"]
[Date "2020.11.10"]
[Round "6"]
[White "Promacherr"]
[Black "Guenplen"]
[Result "1-0"]
[WhiteElo "2727"]
[BlackElo "2876"]
[TimeControl "180+1"]
[EndTime "11:10:20 PST"]
[Termination "Promacherr won on time"]

1. d4 {[%clk 0:03:00.9]} 1... d5 {[%clk 0:02:59.7]} 2. Bf4 {[%clk 0:03:00.4]}
2... c5 {[%clk 0:02:59.2]} 3. e3 {[%clk 0:03:00.7]} 3... cxd4 {[%clk 0:02:59.6]}
4. exd4 {[%clk 0:03:01.6]} 4... Nc6 {[%clk 0:03:00]} 5. c3 {[%clk 0:03:02]} 5...
Bf5 {[%clk 0:03:00]} 6. Nd2 {[%clk 0:03:02]} 6... e6 {[%clk 0:03:00.2]} 7. Qb3
{[%clk 0:03:01.2]} 7... Qd7 {[%clk 0:02:58.2]} 8. Ngf3 {[%clk 0:03:00.9]} 8...
f6 {[%clk 0:02:58.4]} 9. Be2 {[%clk 0:02:43.3]} 9... g5 {[%clk 0:02:57.1]} 10.
Bg3 {[%clk 0:02:41.3]} 10... h5 {[%clk 0:02:57.2]} 11. h3 {[%clk 0:02:37.8]}
11... Nge7 {[%clk 0:02:52.9]} 12. Nf1 {[%clk 0:02:35.8]} 12... Be4 {[%clk
0:02:47.8]} 13. Ne3 {[%clk 0:02:33.4]} 13... Nf5 {[%clk 0:02:33.6]} 14. Nd2
{[%clk 0:01:56]} 14... Nxe3 {[%clk 0:02:22.4]} 15. Nxe4 {[%clk 0:01:51.7]} 15...
Nxg2+ {[%clk 0:02:18.2]} 16. Kf1 {[%clk 0:01:50.9]} 16... dxe4 {[%clk
0:02:19.1]} 17. Kxg2 {[%clk 0:01:50.3]} 17... h4 {[%clk 0:02:16.9]} 18. Bh2
{[%clk 0:01:49.3]} 18... Rh7 {[%clk 0:01:57.5]} 19. Rad1 {[%clk 0:01:45.6]}
19... Rd8 {[%clk 0:01:23.3]} 20. Rhe1 {[%clk 0:01:44.2]} 20... f5 {[%clk
0:00:42.4]} 21. Kh1 {[%clk 0:01:19.4]} 21... Na5 {[%clk 0:00:38]} 22. Qc2 {[%clk
0:01:15.3]} 22... Bd6 {[%clk 0:00:38.1]} 23. Bg1 {[%clk 0:00:51.8]} 23... Bf4
{[%clk 0:00:29]} 24. c4 {[%clk 0:00:44.3]} 24... Nc6 {[%clk 0:00:22.5]} 25. d5
{[%clk 0:00:42.3]} 25... Ne5 {[%clk 0:00:22.8]} 26. a4 {[%clk 0:00:27.1]} 26...
a6 {[%clk 0:00:21.1]} 27. b4 {[%clk 0:00:26.3]} 27... Re7 {[%clk 0:00:17.8]} 28.
Bh5+ {[%clk 0:00:20.5]} 28... Kf8 {[%clk 0:00:17.7]} 29. dxe6 {[%clk 0:00:20.7]}
29... Qc7 {[%clk 0:00:18.2]} 30. Rxd8+ {[%clk 0:00:20.5]} 30... Qxd8 {[%clk
0:00:18.7]} 31. Rd1 {[%clk 0:00:21.4]} 31... Qc7 {[%clk 0:00:19.1]} 32. Rd5
{[%clk 0:00:17.6]} 32... Rxe6 {[%clk 0:00:14.1]} 33. Qd1 {[%clk 0:00:17.6]}
33... Ke7 {[%clk 0:00:10]} 34. c5 {[%clk 0:00:17.6]} 34... Qc6 {[%clk
0:00:06.1]} 35. b5 {[%clk 0:00:17.1]} 35... axb5 {[%clk 0:00:06.4]} 36. axb5
{[%clk 0:00:18]} 36... Qxb5 {[%clk 0:00:06.2]} 37. Rd8 {[%clk 0:00:16.9]} 37...
Qc6 {[%clk 0:00:04]} 38. Rh8 {[%clk 0:00:14.3]} 38... e3+ {[%clk 0:00:03.1]} 39.
f3 {[%clk 0:00:12.7]} 39... Rf6 {[%clk 0:00:01.3]} 40. Qd8+ {[%clk 0:00:12.2]}
40... Ke6 {[%clk 0:00:01.9]} 41. Re8+ {[%clk 0:00:12.6]} 41... Qxe8 {[%clk
0:00:02.2]} 42. Qxe8+ {[%clk 0:00:12.8]} 42... Kd5 {[%clk 0:00:02.6]} 43. Qd8+
{[%clk 0:00:12.6]} 43... Kc4 {[%clk 0:00:02.6]} 44. Qxf6 {[%clk 0:00:12.7]}
44... e2 {[%clk 0:00:02.3]} 45. Bf2 {[%clk 0:00:13.1]} 45... Nd3 {[%clk
0:00:02.7]} 46. Qe6+ {[%clk 0:00:12.7]} 1-0

[Event "*** Titled Tuesday Blitz"]
[Site "Chess.com"]
[Date "2020.11.10"]
[Round "6"]
[White "MokshanovAlexey"]
[Black "RobPeresian"]
[Result "1-0"]
[WhiteElo "2618"]
[BlackElo "2461"]
[TimeControl "180+1"]
[EndTime "11:10:20 PST"]
[Termination "MokshanovAlexey won by checkmate"]

1. e4 {[%clk 0:03:00.9]} 1... e5 {[%clk 0:02:59]} 2. Nf3 {[%clk 0:03:00.7]} 2...
Nc6 {[%clk 0:02:59.1]} 3. d4 {[%clk 0:03:01]} 3... exd4 {[%clk 0:02:56.6]} 4.
Nxd4 {[%clk 0:03:01.2]} 4... Nf6 {[%clk 0:02:55.9]} 5. Nxc6 {[%clk 0:03:01]}
5... bxc6 {[%clk 0:02:55.9]} 6. e5 {[%clk 0:03:01.4]} 6... Qe7 {[%clk
0:02:55.6]} 7. Qe2 {[%clk 0:03:01.6]} 7... Nd5 {[%clk 0:02:53.7]} 8. c4 {[%clk
0:03:01.7]} 8... Nb6 {[%clk 0:02:53]} 9. g3 {[%clk 0:02:49.1]} 9... g6 {[%clk
0:02:42.3]} 10. b3 {[%clk 0:02:48.4]} 10... Bg7 {[%clk 0:02:40.5]} 11. Bb2
{[%clk 0:02:48.1]} 11... a5 {[%clk 0:02:32.2]} 12. Bg2 {[%clk 0:02:45.1]} 12...
a4 {[%clk 0:02:28.9]} 13. O-O {[%clk 0:02:44.1]} 13... O-O {[%clk 0:02:22.6]}
14. f4 {[%clk 0:02:31.1]} 14... axb3 {[%clk 0:02:20.6]} 15. axb3 {[%clk
0:02:30.5]} 15... Rxa1 {[%clk 0:02:20.5]} 16. Bxa1 {[%clk 0:02:31.4]} 16... d5
{[%clk 0:02:11.1]} 17. Nd2 {[%clk 0:02:28.6]} 17... Ba6 {[%clk 0:02:07.6]} 18.
Kh1 {[%clk 0:02:19.5]} 18... f6 {[%clk 0:02:02.6]} 19. e6 {[%clk 0:02:06.4]}
19... Re8 {[%clk 0:01:52.8]} 20. f5 {[%clk 0:02:02.6]} 20... gxf5 {[%clk
0:01:51.6]} 21. Re1 {[%clk 0:02:01.5]} 21... Bc8 {[%clk 0:01:42.5]} 22. Nf3
{[%clk 0:01:11.6]} 22... Qxe6 {[%clk 0:01:34.3]} 23. Qd1 {[%clk 0:01:11.3]}
23... Qf7 {[%clk 0:01:30.9]} 24. Nd4 {[%clk 0:01:04.8]} 24... Rxe1+ {[%clk
0:01:24.6]} 25. Qxe1 {[%clk 0:01:04.5]} 25... Bd7 {[%clk 0:01:24.9]} 26. c5
{[%clk 0:01:03.4]} 26... Nc8 {[%clk 0:01:22.4]} 27. Bh3 {[%clk 0:00:48.9]} 27...
Ne7 {[%clk 0:01:21.8]} 28. Qe2 {[%clk 0:00:41.1]} 28... Bh6 {[%clk 0:00:58.9]}
29. Bc3 {[%clk 0:00:38.1]} 29... Bg5 {[%clk 0:00:52]} 30. Bg2 {[%clk 0:00:28.6]}
30... f4 {[%clk 0:00:35.9]} 31. h4 {[%clk 0:00:19.5]} 31... Bh6 {[%clk
0:00:29.6]} 32. g4 {[%clk 0:00:19.9]} 32... Kf8 {[%clk 0:00:21.1]} 33. Bf3
{[%clk 0:00:17.2]} 33... Qg6 {[%clk 0:00:20.5]} 34. Kh2 {[%clk 0:00:14.3]} 34...
Qb1 {[%clk 0:00:17.9]} 35. b4 {[%clk 0:00:13.6]} 35... f5 {[%clk 0:00:11.2]} 36.
g5 {[%clk 0:00:13.2]} 36... Bg7 {[%clk 0:00:11.5]} 37. Ne6+ {[%clk 0:00:13]}
37... Bxe6 {[%clk 0:00:11.2]} 38. Bxg7+ {[%clk 0:00:13.5]} 38... Kxg7 {[%clk
0:00:11.5]} 39. Qxe6 {[%clk 0:00:14.1]} 39... Ng6 {[%clk 0:00:09.2]} 40. Qf6+
{[%clk 0:00:13.7]} 40... Kg8 {[%clk 0:00:09.1]} 41. Qd8+ {[%clk 0:00:13.9]}
41... Nf8 {[%clk 0:00:08.4]} 42. Qxc7 {[%clk 0:00:12.7]} 42... Qxb4 {[%clk
0:00:08.3]} 43. Qxc6 {[%clk 0:00:11.5]} 43... Qd2+ {[%clk 0:00:08]} 44. Kh3
{[%clk 0:00:11.6]} 44... Qf2 {[%clk 0:00:07.8]} 45. Qxd5+ {[%clk 0:00:11.7]}
45... Kg7 {[%clk 0:00:07]} 46. Qe5+ {[%clk 0:00:11.8]} 46... Kg6 {[%clk
0:00:04.1]} 47. Qf6# {[%clk 0:00:11.6]} 1-0

[Event "*** Titled Tuesday Blitz"]
[Site "Chess.com"]
[Date "2020.11.10"]
[Round "6"]
[White "Goryachkina"]
[Black "Tactictic"]
[Result "1-0"]
[WhiteElo "2585"]
[BlackElo "2425"]
[TimeControl "180+1"]
[EndTime "11:10:21 PST"]
[Termination "Goryachkina won by resignation"]

1. e4 {[%clk 0:02:59.7]} 1... c5 {[%clk 0:02:52.3]} 2. Nf3 {[%clk 0:02:59.3]}
2... d6 {[%clk 0:02:52]} 3. c3 {[%clk 0:02:59.1]} 3... Nf6 {[%clk 0:02:51.2]} 4.
Be2 {[%clk 0:02:59.1]} 4... Bg4 {[%clk 0:02:10.6]} 5. h3 {[%clk 0:02:55.7]} 5...
Bh5 {[%clk 0:01:53.7]} 6. Qb3 {[%clk 0:02:53.8]} 6... Qc7 {[%clk 0:01:45.6]} 7.
O-O {[%clk 0:02:42.3]} 7... Nc6 {[%clk 0:01:44.7]} 8. d3 {[%clk 0:02:33.2]} 8...
e6 {[%clk 0:01:44.4]} 9. Bg5 {[%clk 0:02:27.3]} 9... Be7 {[%clk 0:01:38.4]} 10.
Nbd2 {[%clk 0:02:26.2]} 10... h6 {[%clk 0:01:18.7]} 11. Be3 {[%clk 0:02:20.9]}
11... d5 {[%clk 0:01:13.2]} 12. exd5 {[%clk 0:01:56.3]} 12... exd5 {[%clk
0:01:14.1]} 13. Rfe1 {[%clk 0:01:43]} 13... O-O {[%clk 0:01:05.7]} 14. d4 {[%clk
0:01:41.4]} 14... b6 {[%clk 0:01:01.6]} 15. Nf1 {[%clk 0:01:34.3]} 15... Bd6
{[%clk 0:00:59.9]} 16. Nh4 {[%clk 0:01:17.6]} 16... Rfe8 {[%clk 0:00:52.6]} 17.
Bxh5 {[%clk 0:01:15.8]} 17... Nxh5 {[%clk 0:00:46.7]} 18. Qxd5 {[%clk
0:01:13.1]} 18... cxd4 {[%clk 0:00:35.6]} 19. Qxh5 {[%clk 0:01:08]} 19... dxe3
{[%clk 0:00:35.6]} 20. Nxe3 {[%clk 0:01:08.1]} 20... Bc5 {[%clk 0:00:28.9]} 21.
Nhf5 {[%clk 0:01:01.1]} 21... g6 {[%clk 0:00:19.9]} 22. Nxh6+ {[%clk 0:00:53.7]}
22... Kh7 {[%clk 0:00:20.2]} 23. Qh4 {[%clk 0:00:36.2]} 23... Be7 {[%clk
0:00:20.3]} 24. Qc4 {[%clk 0:00:32.9]} 24... Kxh6 {[%clk 0:00:20.3]} 25. Qxf7
{[%clk 0:00:25.9]} 25... Bd6 {[%clk 0:00:20.6]} 26. Ng4+ {[%clk 0:00:23.2]}
26... Kg5 {[%clk 0:00:15.6]} 27. Rxe8 {[%clk 0:00:23]} 27... Qxf7 {[%clk
0:00:14.7]} 28. Rxa8 {[%clk 0:00:22.8]} 28... Nb8 {[%clk 0:00:11.8]} 29. Rd1
{[%clk 0:00:18.3]} 29... Qb7 {[%clk 0:00:10.9]} 30. Rxd6 {[%clk 0:00:17.5]}
30... Qxa8 {[%clk 0:00:11.2]} 31. g3 {[%clk 0:00:16.9]} 31... Qe4 {[%clk
0:00:10]} 32. f4+ {[%clk 0:00:15]} 32... Kh5 {[%clk 0:00:08]} 33. Nf6+ {[%clk
0:00:15]} 33... Kh6 {[%clk 0:00:07.1]} 34. Nxe4 {[%clk 0:00:15.9]} 34... Kh7
{[%clk 0:00:05.6]} 35. Ng5+ {[%clk 0:00:15.5]} 35... Kg7 {[%clk 0:00:05.4]} 36.
Rd8 {[%clk 0:00:15.3]} 36... Nc6 {[%clk 0:00:04.6]} 37. Rd7+ {[%clk 0:00:15.7]}
37... Kf8 {[%clk 0:00:04.8]} 38. Rc7 {[%clk 0:00:15.7]} 38... Ne7 {[%clk
0:00:04.9]} 39. Rxa7 {[%clk 0:00:15.8]} 39... Nf5 {[%clk 0:00:05.1]} 40. Kf2
{[%clk 0:00:15.3]} 40... Ke8 {[%clk 0:00:04.9]} 41. b4 {[%clk 0:00:15]} 41...
Kd8 {[%clk 0:00:05.4]} 42. a4 {[%clk 0:00:15.5]} 42... Nd6 {[%clk 0:00:05]} 43.
a5 {[%clk 0:00:14.9]} 43... Nb5 {[%clk 0:00:04.3]} 44. Rg7 {[%clk 0:00:14.3]}
44... bxa5 {[%clk 0:00:03.3]} 45. bxa5 {[%clk 0:00:14.4]} 45... Nxc3 {[%clk
0:00:04.2]} 46. a6 {[%clk 0:00:14.8]} 46... Kc8 {[%clk 0:00:04.2]} 47. a7 {[%clk
0:00:14.6]} 47... Ne4+ {[%clk 0:00:03.9]} 48. Nxe4 {[%clk 0:00:13.9]} 1-0